Cogmind - Beta 16.1 @@@ ROGUE MODE // 2026.03.17 @ 12:22:05 Player: Kyzrati Result: Escaped! Performance ------------- Evolutions (9) 4500 Regions Visited (23) 4600 Robots Destroyed (222) 1110 Value Destroyed (6980) 6980 Prototype IDs (51) 1020 Alien Tech Used (0) 0 Bonus (25670) 25670 TOTAL SCORE: 43880 Bonus ------- High Alert Combat Kills 1345 Follower Combat Kills 10246 Awakened Behemoth Slayer 1000 Network Hubs Disabled 200 Met Imprinter 300 Met Warlord at Base 500 MAIN.C Attacked Warlord 500 Warlord Defense Kills 1264 Built Enhanced Grunts 300 A7 Reached Mainframe 300 Met R17 at Cetus 500 Met R17 at Research 2000 Met Warlord at Research 2000 Invited to Help at Command 2000 Scanned by Researcher 500 Win 3000 Friendly Fire -285 Cogmind --------- Core Integrity 1034/1600 Matter 300/300 Energy 595/690 System Corruption 19% Temperature Cool (0) Movement Rolling (130) Ox2 Location To Epsilon Eridani Parts ------- > --- POWER (3) -------- Quantum Reactor Light Quantum Reactor Reinforced Quantum Reactor > --- PROPULSION (6) --- Centrium Wheel Centrium Wheel Centrium Wheel Centrium Wheel Centrium Wheel Centrium Wheel > --- UTILITY (10) ----- Advanced Cooling System Advanced Cooling System Huge Storage Unit Enhanced Optical Array Centrium Heavy Armor Plating Centrium Heavy Armor Plating Centrium Heavy Armor Plating > --- WEAPON (6) ------- 1B-0RG's Assimilator Impact Mace > --- INVENTORY (25) --- Centrium Leg Centrium Wheel Centrium Wheel Centrium Wheel Matter Compressor (250) Matter Compressor (130) Improved Matter Compressor (0) Improved Matter Compressor (0) Advanced Terrain Scanner Heavy Reflective Plating Force Field Advanced Point Defense System Advanced Component Analysis Suite Long-range Tractor Beam Mini Drone Bay (1/3) Hacking Drone Bay (1/1) Vortex Rifle (35) Enhanced Nova Cannon Multirail Multirail Long-range Missile Launcher Z-bomb Delivery System Vibroblade CR-A16's Behemoth Slayer Peak State ------------ > --- POWER ------------ Quantum Reactor Vortex Chain Reactor > --- PROPULSION ------- Centrium Wheel Centrium Wheel Centrium Wheel Centrium Wheel Centrium Wheel Centrium Wheel > --- UTILITY ---------- Huge Storage Unit Enhanced Optical Array Centrium Heavy Armor Plating Centrium Heavy Armor Plating Centrium Heavy Armor Plating Force Field Advanced Remote Shield > --- WEAPON ----------- 1B-0RG's Assimilator CR-A16's Behemoth Slayer > --- INVENTORY -------- Light Quantum Reactor Light Quantum Reactor Centrium Leg Centrium Wheel Centrium Wheel Centrium Wheel High-capacity Matter Pod Matter Compressor Matter Compressor Improved Matter Compressor Improved Matter Compressor Advanced Terrain Scanner Advanced Point Defense System Advanced Component Analysis Suite Long-range Tractor Beam Mini Drone Bay Hacking Drone Bay Vortex Rifle Enhanced Nova Cannon Long-range Missile Launcher Z-bomb Delivery System Impact Mace Vibroblade [Rating: 235] Favorites ----------- Power Vortex Chain Reactor Engine Angular Momentum Engine Power Core Light Nuclear Core Reactor Vortex Chain Reactor Propulsion Centrium Wheel Treads Light Treads Leg Arachnoskeleton Wheel Centrium Wheel Utility Seismic Detector Device Seismic Detector Storage High-capacity Storage Unit Processor Enhanced Optical Array Hackware System Shield Protection Centrium Medium Armor Plating Weapon 1B-0RG's Assimilator Energy Gun Gatling Laser Energy Cannon Cooled Particle Cannon Ballistic Gun Flak Gun Ballistic Cannon Advanced Assault Cannon Launcher Improved Grenade Launcher Special Weapon Improved Plasma Cutter Impact Weapon Impact Mace Slashing Weapon Makeshift Axe Piercing Weapon CR-A16's Pointy Stick Special Melee Weapon 1B-0RG's Assimilator Build | -11 -10 -10 -8 -7 -7 -7 -7 -6 -6 -5 -5 -5 -5 -5 -4 -4 -4 -4 -3 -3 -3 -2 -1 ------- Run | Yrd Mat Sub Mat Fac Low Low Zio Pro Fac Fac Ext Cet Arc Hub Fac Upp Upp War Pro Res Tes Res Acc Slots Evolved 18 | . . . 4 2 . . . . 2 2 . . . . 2 . . . . 2 . 2 2 Power 2 | . . . . 1 . . . . . . . . . . . . . . . 1 . . . Propulsion 4 | . . . 1 . . . . . . 1 . . . . 1 . . . . 1 . . . Utility 8 | . . . 1 1 . . . . . 1 . . . . 1 . . . . . . 2 2 Weapon 4 | . . . 2 . . . . . 2 . . . . . . . . . . . . . . Parts Attached 194 | 7 2 12 11 23 5 . 3 6 28 12 11 4 1 3 6 4 2 10 . 5 8 19 12 Power 29 | 1 1 2 1 4 2 . . 3 5 . 1 1 1 . . . . 1 . 1 1 1 3 Engine 15 | 1 1 2 1 4 1 . . 2 2 . 1 . . . . . . . . . . . . Core 4 | . . . . . 1 . . 1 2 . . . . . . . . . . . . . . Reactor 10 | . . . . . . . . . 1 . . 1 1 . . . . 1 . 1 1 1 3 Propulsion 44 | 2 . 3 2 . . . . 2 4 5 2 1 . . 3 . 2 2 . 4 2 10 . Treads 9 | 2 . 1 . . . . . . . 1 1 1 . . 1 . . . . . 2 . . Leg 9 | . . 2 2 . . . . . 1 . . . . . . . . 2 . . . 2 . Wheel 26 | . . . . . . . . 2 3 4 1 . . . 2 . 2 . . 4 . 8 . Hover . | . . . . . . . . . . . . . . . . . . . . . . . . Flight . | . . . . . . . . . . . . . . . . . . . . . . . . Utility 69 | 2 . 1 3 8 2 . 2 . 9 5 8 1 . 3 2 2 . 4 . . 2 7 8 Device 34 | 1 . . 2 3 1 . 1 . 6 3 3 . . 1 1 1 . 2 . . 1 4 4 Storage 11 | 1 . . 1 2 1 . . . 1 1 . . . . . . . 1 . . . 1 2 Processor 3 | . . . . . . . . . 1 . . . . . 1 . . 1 . . . . . Hackware 2 | . . . . . . . . . 1 1 . . . . . . . . . . . . . Protection 19 | . . 1 . 3 . . 1 . . . 5 1 . 2 . 1 . . . . 1 2 2 Artifact . | . . . . . . . . . . . . . . . . . . . . . . . . Weapon 52 | 2 1 6 5 11 1 . 1 1 10 2 . 1 . . 1 2 . 3 . . 3 1 1 Energy Gun 11 | 1 1 . 1 2 . . . . 4 . . . . . . . . . . . 2 . . Energy Cannon 8 | . . 1 1 . . . . . 4 . . . . . . . . 1 . . . 1 . Ballistic Gun 11 | 1 . . 1 5 1 . . 1 . . . 1 . . . . . . . . . . 1 Ballistic Cannon 7 | . . 3 1 3 . . . . . . . . . . . . . . . . . . . Launcher 6 | . . 1 . 1 . . . . . 2 . . . . . . . 1 . . 1 . . Special Weapon 2 | . . . . . . . . . . . . . . . . 1 . 1 . . . . . Impact Weapon 3 | . . 1 . . . . . . 1 . . . . . 1 . . . . . . . . Slashing Weapon 2 | . . . 1 . . . 1 . . . . . . . . . . . . . . . . Piercing Weapon 1 | . . . . . . . . . . . . . . . . 1 . . . . . . . Special Melee Weapon 1 | . . . . . . . . . 1 . . . . . . . . . . . . . . Unidentified Prototypes 26 | . . . 1 . . . 1 . 6 1 . 3 . . . . . 7 . . 6 . 1 Corrupted Parts 1 | . . . 1 . . . . . . . . . . . . . . . . . . . . System Corruption 5 | . . . 5 . . . . . . . . . . . . . . . . . . . . Parts Lost 39 | . . 5 . 8 . 1 . 6 6 3 1 . . 1 1 . 1 1 . . . . 5 Power 11 | . . 2 . 3 . 1 . 2 1 . . . . . . . . . . . . . 2 Propulsion 11 | . . 1 . 3 . . . 1 1 2 . . . . 1 . 1 1 . . . . . Utility 11 | . . 1 . 1 . . . 2 1 1 1 . . 1 . . . . . . . . 3 Weapon 6 | . . 1 . 1 . . . 1 3 . . . . . . . . . . . . . . Highest Loss Streak 3 | . . 3 . 3 . 1 . 3 2 1 1 . . 1 1 . 1 1 . . . . 2 To Critical Strikes . | . . . . . . . . . . . . . . . . . . . . . . . . Average Backups 13 | 4 7 7 3 4 5 6 6 5 13 19 19 20 20 19 17 19 19 19 20 19 19 18 21 Power . | . 1 . . . . . . . 1 1 . . . . . . 1 1 1 . . . . Propulsion 1 | 3 4 2 . . 1 2 2 1 1 3 2 2 2 2 1 3 2 . . . . 1 4 Utility 6 | . . . . 1 1 1 1 2 5 7 9 12 13 12 11 11 12 12 13 12 13 11 11 Weapon 4 | . 1 3 . 1 2 2 1 1 3 6 6 5 5 5 4 4 4 4 5 5 6 6 6 Tool/Special . | . . . . . . . . . . . . . . . . . . . . . . . . Unused Backups 27 | . 1 3 3 3 . . 1 . 1 2 . 1 . . . 2 . 1 . 1 2 . 6 Power 3 | . . . 1 . . . . . . . . . . . . 1 . 1 . . . . . Propulsion 7 | . . 2 . 2 . . . . . 1 . 1 . . . . . . . . . . 1 Utility 10 | . 1 . 1 1 . . . . 1 1 . . . . . 1 . . . . 1 . 3 Weapon 7 | . . 1 1 . . . 1 . . . . . . . . . . . . 1 1 . 2 Tool/Special . | . . . . . . . . . . . . . . . . . . . . . . . . Average Slot Usage (%) 78 | . 100 98 76 84 70 83 76 72 82 74 71 69 70 70 72 72 73 76 73 74 68 70 71 Engine 4 | . 14 12 6 12 2 6 . 3 1 5 5 9 2 . . . . . . . . . . Reactor 4 | . . . . . . . . . 4 5 4 1 8 11 10 10 10 8 5 7 9 8 8 Treads 5 | . 28 24 . . . . . . . 4 5 4 5 5 5 5 5 3 . . 3 2 . Leg 5 | . . 3 24 19 7 7 7 5 4 . . . . . . . . 1 10 9 2 1 . Wheel 10 | . . . . . . . . 3 13 17 12 10 11 11 15 15 15 20 15 18 19 18 24 Device 12 | . 14 12 13 13 15 15 15 13 10 15 14 17 17 14 6 12 10 5 14 10 9 16 13 Storage 7 | . 14 14 7 6 13 15 8 7 6 5 5 5 5 5 5 5 5 5 5 4 4 4 4 Processor 1 | . . . . . . . . . . . . . . . 4 5 5 5 5 4 4 4 4 Protection 4 | . . 1 . 5 . . 5 5 . . 6 5 5 7 14 7 9 15 5 7 4 4 8 Energy Gun 1 | . 24 . 1 4 . . . . 6 . . . . . . . . . . . . . . Energy Cannon 1 | . . 5 3 . . . . . 7 . 1 1 . . . . . . . . . . . Ballistic Gun 2 | . 3 . 5 6 12 14 7 8 3 . . 3 5 1 . . . . . . . . . Ballistic Cannon 3 | . . 14 7 6 7 1 7 7 1 . . . . . . . . . . . . . . Impact Weapon 2 | . . 6 3 . . . . . . . . . . . 1 4 4 4 . . 3 3 3 Slashing Weapon 2 | . . . 3 6 7 7 7 7 5 4 3 . . 3 3 . . . . . . . . Special Melee Weapon 2 | . . . . . . . . . 1 5 5 5 5 5 5 5 5 5 5 4 4 4 4 Peak Build Rating 235 | 7 7 18 52 62 57 57 64 63 111 120 126 139 134 142 155 154 153 163 163 172 176 216 235 Average Rating 107 | 5 7 11 45 59 52 56 55 51 71 116 120 126 132 135 149 148 147 150 158 165 169 201 222 On Entrance 99 | . 7 7 18 52 45 57 55 57 32 111 117 117 131 134 142 150 153 145 163 158 172 172 204 Avg Prop Armor Cover (%) 5 | . . 8 8 6 . . . . 3 6 5 5 5 4 3 4 4 3 6 5 6 5 . Naked Turns . | . . . . . . . . . . . . . . . . . . . . . . . . Heaviest Build 288 | 12 15 24 31 50 37 39 44 58 130 137 148 151 156 164 169 165 164 174 169 185 193 238 288 Greatest Support 96 | 40 40 40 85 85 50 50 50 50 48 48 48 44 44 44 60 56 60 60 48 58 52 96 96 Greatest Overweight (x) 5 | . . 1 . 1 . . . 1 5 4 3 5 3 3 3 2 5 3 3 3 3 3 3 Average Overweight (x) 1 | . . . . . . . . . 2 2 2 3 3 3 2 2 2 2 3 2 3 2 2 Largest Inventory Capacity 25 | 8 8 8 8 10 10 10 10 10 20 20 20 20 20 20 20 20 20 20 20 20 20 25 25 Average Capacity 15 | 6 8 8 8 8 10 10 10 10 18 20 20 20 20 20 20 20 20 20 20 20 20 20 25 Most Carried 25 | 6 8 8 8 10 10 10 10 10 20 20 20 20 20 20 20 20 20 20 20 20 20 25 25 Average Carried 15 | 5 7 7 7 8 9 10 9 9 16 19 19 19 20 19 17 19 19 19 20 19 19 20 22 Final Capacity 25 | 8 8 8 8 10 10 10 10 10 20 20 20 20 20 20 20 20 20 20 20 20 20 25 25 Final Carried 25 | 6 8 8 8 10 10 10 10 8 20 19 20 20 20 19 20 20 19 20 20 20 20 25 25 Class Distribution -------------------- 39% | Mutant 19% | Scavenger-Mutant 11% | Tank 9% | Scavenger-Assassin 5% | Gunner 3% | Commander-Mutant Dominant Class ---------------- Mutant | -10/Materials Mutant | -10/Subcaves Gunner | -8/Materials Tank | -7/Factory Gunner | -7/Lower Caves Scavenger-Gunner | -7/Lower Caves Tank | -7/Zion Tank | -6/Proximity Caves Executioner | -6/Factory Mutant | -5/Factory Mutant | -5/Extension Commander-Mutant | -5/Cetus Commander-Mutant | -5/Archives Commander-Mutant | -5/Hub_04(d) Scavenger-Mutant | -4/Factory Scavenger-Assassin | -4/Upper Caves Scavenger-Assassin | -4/Upper Caves Scavenger-Mutant | -4/Warlord Scavenger-Assassin | -3/Proximity Caves Scavenger-Mutant | -3/Research Scavenger-Assassin | -3/Testing Mutant | -2/Research Mutant | -1/Access Resources | -11 -10 -10 -8 -7 -7 -7 -7 -6 -6 -5 -5 -5 -5 -5 -4 -4 -4 -4 -3 -3 -3 -2 -1 ----------- Run | Yrd Mat Sub Mat Fac Low Low Zio Pro Fac Fac Ext Cet Arc Hub Fac Upp Upp War Pro Res Tes Res Acc Matter Collected 27454 | 231 32 563 384 940 89 40 44 238 543 2060 1599 190 10 114 3147 1018 755 496 20 712 1857 3131 9241 Remotely 7990 | . . . . . . . . . . 618 442 81 . 100 749 . . 256 . 248 393 1337 3766 Salvage Created 9942 | 23 145 338 461 1243 113 119 . 143 538 1953 441 . . 425 779 115 . 541 . 739 145 178 1503 Parts 375 | 6 7 18 28 61 6 6 . 11 24 78 13 . . 18 20 . . 20 . 22 9 1 27 Haulers Intercepted 4 | . 1 . . . . . . . 1 1 . . . . . . . . . . . . 1 Recyclers Shooed 20 | . . . 3 1 . . . . 1 6 . . . . 5 . . . . . . . 4 Parts Field Recycled . | . . . . . . . . . . . . . . . . . . . . . . . . Retrieved Matter . | . . . . . . . . . . . . . . . . . . . . . . . . Parts Self-Destructed 76 | . . 9 . . 5 6 . 9 . . . . . . . 23 5 . 19 . . . . Prevented 3 | . . . . . 3 . . . . . . . . . . . . . . . . . . Parts Restored . | . . . . . . . . . . . . . . . . . . . . . . . . Kills | -11 -10 -10 -8 -7 -7 -7 -7 -6 -6 -5 -5 -5 -5 -5 -4 -4 -4 -4 -3 -3 -3 -2 -1 ------- Run | Yrd Mat Sub Mat Fac Low Low Zio Pro Fac Fac Ext Cet Arc Hub Fac Upp Upp War Pro Res Tes Res Acc Combat Hostiles Destroyed 114 | . 2 13 9 20 . 4 . 11 4 3 1 . . . . 3 . 13 . 9 2 3 17 Melee 2 | . . . . . . . . . 1 . . . . . . 1 . . . . . . . Guns 14 | . . . 2 9 . . . 3 . . . . . . . . . . . . . . . Cannons 25 | . . 7 6 4 . . . 3 2 1 1 . . . . . . . . . . . 1 AOE 60 | . 2 5 . 7 . 4 . 5 . 1 . . . . . . . 13 . 8 2 2 11 Classes Destroyed 24 | 1 3 2 4 3 2 . . 1 . . . . . 2 . . . 2 . . 1 1 2 Worker 22 | . . . . 3 . . . . 1 11 . . . 3 3 . . . . 1 . . . Builder 17 | . . . 2 . . . . . 1 2 1 . . 2 6 . . . . . 1 . 2 Tunneler 6 | 2 . . 1 1 . . . . . . . . . . . . . . . 2 . . . Hauler 4 | . 1 . . . . . . . 1 1 . . . . . . . . . . . . 1 Recycler 40 | . . . 2 6 . . . . 2 11 3 . . 1 5 . . . . 3 . 1 6 Minesweeper 3 | . . . . . 1 1 . . . . . . . . . 1 . . . . . . . Mechanic 4 | . . . 1 . . . . . . . . . . . . . . 2 . 1 . . . Operator 1 | . . . . . . . . . . . . . . 1 . . . . . . . . . Drone 1 | . . . . . . . . 1 . . . . . . . . . . . . . . . Watcher 5 | . 1 . . 2 . . . . . 1 . . . . . . . . . 1 . . . Swarmer 40 | . . 3 6 4 . 4 . 10 . . . . . . . 2 . 6 . 3 . 2 . Grunt 31 | . 2 2 . 3 . . . . 1 2 . . . . . . . 4 . 6 2 . 9 Brawler 4 | . . . . . . . . . . . . . . . . . . 1 . . . . 3 Duelist 2 | . . . . . . . . . . . . . . . . 1 . 1 . . . . . Protector 2 | . . . . . . . . . . . . . . . . . . 1 . . . . 1 Researcher 1 | . . . . . . . . . . . . . . . . . . . . . 1 . . Sentry 12 | . . . 3 8 . . . . . . 1 . . . . . . . . . . . . Hunter 6 | . . . . 1 . . . . 1 . . . . . . . . 1 . . . . 3 Programmer 7 | . . . . 4 . . . . 2 1 . . . . . . . . . . . . . Q-Series 1 | . . . . . . . . . . . . . . . . . . . . . . . 1 Behemoth 2 | . . . . . . . . . . . . . . . . . . . . . . . 2 Executioner 1 | . . . . . . . . . . . . . . . . . . . . . . 1 . Subdweller 8 | . . 8 . . . . . . . . . . . . . . . . . . . . . Decomposer 6 | . . . . . 3 2 . 1 . . . . . . . . . . . . . . . Samaritan 1 | . . . . . 1 . . . . . . . . . . . . . . . . . . Butcher 1 | . . . . . . . . . . . . . . 1 . . . . . . . . . Guerrilla 1 | . . . . . . . . . . . . . . 1 . . . . . . . . . Best Kill Streak 13 | 1 2 3 6 4 1 4 . 4 2 4 2 . . 5 4 2 . 10 . 13 2 2 10 Combat Bots Only 9 | . 2 3 4 4 . 4 . 4 1 3 1 . . . . 2 . 9 . 8 2 2 9 Max Kills in Single Turn 6 | 1 2 3 2 3 1 4 . 2 1 1 1 . . 6 1 1 . 5 . 4 2 2 4 Gunslinging . | . . . . . . . . . . . . . . . . . . . . . . . . Exploded 5 | . 2 3 . 3 . 4 . 2 . 1 . . . . . . . 5 . 3 2 2 4 Melee 1 | . . . . . . . . . 1 . . . . . . 1 . . . . . . . Uniques/NPCs Destroyed . | . . . . . . . . . . . . . . . . . . . . . . . . Combat | -11 -10 -10 -8 -7 -7 -7 -7 -6 -6 -5 -5 -5 -5 -5 -4 -4 -4 -4 -3 -3 -3 -2 -1 -------- Run | Yrd Mat Sub Mat Fac Low Low Zio Pro Fac Fac Ext Cet Arc Hub Fac Upp Upp War Pro Res Tes Res Acc Hostile Shots Fired 1190 | . . 46 39 233 . 4 . 89 49 42 35 11 . 6 74 57 33 6 7 9 24 106 320 Missed 422 | . . 13 11 92 . 2 . 21 13 9 17 6 . 2 32 21 7 1 . 7 11 47 110 Intercepted 3 | . . . . . . . . . . . . . . . . . . . . . . 2 1 Hits 768 | . . 33 28 141 . 2 . 68 36 33 18 5 . 4 42 36 26 5 7 2 13 59 210 Melee 3 | . . . . . . . . . . . . . . . . . . . . . . . 3 Projectile 765 | . . 33 28 141 . 2 . 68 36 33 18 5 . 4 42 36 26 5 7 2 13 59 207 AOE 14 | . . . . . . . . . . . . . . . . . . 8 . . 1 . 5 Critical Strikes 27 | . . . 2 2 . . . 1 . . 1 2 . . 2 . . 1 . . . . 16 Part Disruptions 2 | . . . . . . . . . . . . . . . . . . . . . . . 2 Damage Taken 13232 | . 40 700 350 1594 . 30 . 1014 923 768 426 84 . 114 467 390 377 220 85 60 309 706 4575 Core 1831 | . . 59 52 98 . . . 126 212 86 46 19 . 44 187 36 22 16 . . 130 132 566 Absorbed by Shields 3414 | . . . . . . . . . . . 36 87 . 86 261 359 254 133 59 58 199 423 1459 Ignored by Resistances 218 | . . . . . . . . . . . . . . . . . . . . . . . 218 Regen/Repaired (Parts) 985 | . . . . . . . . . 9 218 64 29 . . 22 61 56 116 21 22 11 70 286 Core Remaining (%) 81 | 100 . 76 90 . . . . 68 75 . . . . 80 . . . . 77 . 90 90 64 Volleys Fired 295 | 29 5 32 23 46 5 2 . 33 9 11 18 1 . 7 4 2 . 15 . 9 7 5 32 Largest 4 | 2 2 2 3 3 1 1 . 2 4 1 1 1 . 1 1 1 . 1 . 1 1 1 1 Hottest 200 | 60 80 113 135 148 40 40 . 68 200 90 30 90 . 43 43 30 . 110 . 110 110 120 120 Shots Fired 455 | 30 10 56 49 112 5 2 . 46 32 11 18 1 . 7 4 2 . 15 . 9 7 5 34 Gun 194 | 30 10 13 19 66 . . . 24 17 . . . . 4 3 . . . . . 3 . 5 Cannon 212 | . . 40 30 42 5 1 . 18 15 5 18 1 . . . 1 . 1 . 5 2 4 24 Launcher 48 | . . 3 . 4 . 1 . 4 . 6 . . . 3 1 . . 14 . 4 2 1 5 Special 1 | . . . . . . . . . . . . . . . . 1 . . . . . . . Kinetic 240 | 29 . 27 41 82 5 1 . 42 . . . . . 4 3 . . . . . 1 . 5 Thermal 124 | . . 14 8 26 . . . . 15 5 18 1 . . . 1 . 1 . 5 2 4 24 Explosive 38 | . . 3 . 4 . 1 . 4 . . . . . . . . . 14 . 4 2 1 5 Electromagnetic 52 | 1 10 12 . . . . . . 17 6 . . . 3 1 . . . . . 2 . . Robot Hit Streak 18 | 3 6 18 6 15 . . . 4 5 10 11 . . . . 1 . 9 . 4 8 10 7 Robot Miss Streak 9 | 2 3 1 3 9 . . . 9 4 . . . . . 3 . . 2 . . . 1 4 Penetration Max . | . . . . . . . . . . . . . . . . . . . . . . . . Secondary Targets . | . . . . . . . . . . . . . . . . . . . . . . . . Shots Hit Robots 424 | 17 7 43 39 87 8 5 . 31 28 48 7 . . 3 24 7 6 9 . 10 7 6 32 Core Hits 306 | 7 5 15 11 57 2 6 . 25 10 25 4 . . 10 10 1 1 61 . 24 11 1 20 Critical Kills 2 | . . . . . . . . . . . . . . . 1 . . . . . . . 1 Critical Parts Destroyed 10 | . . . 1 2 . . . . . . . . . . . 1 . 1 . 1 2 2 . Critical Strikes 23 | . 1 2 2 5 . . . . 1 . . . . . 1 1 2 1 . 2 2 2 1 Meltdown 1 | . . . . . . . . . . . . . . . . . . . . . . . 1 Destroy 3 | . . . . 2 . . . . . . . . . . . . . . . . 1 . . Blast 5 | . . 1 1 3 . . . . . . . . . . . . . . . . . . . Corrupt 2 | . 1 1 . . . . . . . . . . . . . . . . . . . . . Smash 8 | . . . 1 . . . . . . . . . . . 1 1 . 1 . 1 1 2 . Sever 1 | . . . . . . . . . 1 . . . . . . . . . . . . . . Impale 3 | . . . . . . . . . . . . . . . . . 2 . . 1 . . . Melee Attacks 403 | . . 24 42 48 12 10 1 5 31 59 7 . . 7 39 13 7 1 . 15 24 15 43 Impact 162 | . . 24 28 . . . . . . . . . . . 11 10 1 1 . 9 24 15 39 Slashing 222 | . . . 14 48 12 10 1 5 31 59 7 . . 7 28 . . . . . . . . Piercing 19 | . . . . . . . . . . . . . . . . 3 6 . . 6 . . 4 Sneak Attacks 118 | . . . 9 16 7 3 . 1 4 28 3 . . 3 22 2 1 1 . 6 2 1 9 Combat Hostiles 1 | . . . . . . . . . . . . . . . . . . . . 1 . . . Follow-up Attacks . | . . . . . . . . . . . . . . . . . . . . . . . . Damage Inflicted 30888 | 145 146 1155 1506 3610 506 514 . 908 1255 3086 359 . . 1200 1884 355 270 3836 . 1871 859 957 6466 Guns 2212 | 145 102 107 160 1054 . . . 248 161 . . . . . . . . . . . 27 . 208 Cannons 2798 | . . 745 418 570 . . . 188 212 88 26 . . . . . . 41 . . . 81 429 Explosions 14630 | . 44 303 . 849 . 255 . 370 222 421 . . . 974 71 . . 3654 . 1468 569 724 4706 Melee 11231 | . . . 928 1137 506 259 . 102 660 2577 333 . . 226 1813 355 270 141 . 403 263 152 1106 Ramming 17 | . . . . . . . . . . . . . . . . . . . . . . . 17 Kinetic 2770 | 145 . 477 428 1053 . . . 436 . . . . . . . . . . . . 23 . 208 Thermal 2660 | . 44 338 150 879 . . . . 434 202 26 . . . . . . 41 . . . 81 465 Explosive 12494 | . . 243 . 541 . 255 . 370 . . . . . . . . . 3654 . 1468 569 724 4670 Electromagnetic 1716 | . 102 97 . . . . . . 161 307 . . . 974 71 . . . . . 4 . . Impact 3245 | . . . 587 . . . . . . . . . . . 575 321 106 141 . 62 263 152 1038 Slashing 7379 | . . . 341 1137 506 259 . 102 660 2577 333 . . 226 1238 . . . . . . . . Piercing 607 | . . . . . . . . . . . . . . . . 34 164 . . 341 . . 68 Highest Corruption 19 | . . . 5 . . . . . 8 . 1 . . 1 2 2 2 2 . . 1 6 19 Average Corruption 4 | . . . 5 . . . . . 7 . 1 . . 1 1 2 2 2 . . 1 5 7 Corruption Purged 1 | . . . . . . . . . . . 1 . . . . . . . . . . . . Corruption Blocked . | . . . . . . . . . . . . . . . . . . . . . . . . Effects 157 | . . . 23 . . . . . 28 . . . . 1 5 12 11 1 . . 1 51 24 Message Errors 48 | . . . 7 . . . . . 7 . . . . . . 3 5 . . . . 22 4 Matter Fused 41 | . . . 6 . . . . . 6 . . . . . 1 3 3 1 . . 1 14 6 Heat Flow Errors 14 | . . . 1 . . . . . 1 . . . . 1 . 1 1 . . . . 5 4 Energy Discharges 18 | . . . 4 . . . . . 5 . . . . . . 3 . . . . . 3 3 Parts Rejected 3 | . . . . . . . . . . . . . . . . . . . . . . 1 2 Parts Fused 3 | . . . 2 . . . . . . . . . . . 1 . . . . . . . . Data Loss (minor) 16 | . . . 1 . . . . . 8 . . . . . 2 2 1 . . . . 1 1 Data Loss (major) 7 | . . . 1 . . . . . . . . . . . 1 . 1 . . . . 3 1 Misfires 4 | . . . 1 . . . . . 1 . . . . . . . . . . . . . 2 Alerts 2 | . . . . . . . . . . . . . . . . . . . . . . 2 . Misdirections 1 | . . . . . . . . . . . . . . . . . . . . . . . 1 Overload Shots 3 | . . . . . . . . . . 2 . 1 . . . . . . . . . . . Overflow Damage 4279 | . . 5 345 413 222 116 . 59 152 455 26 . . 133 585 148 . 205 . 302 118 320 675 Projectiles 83 | . . . 31 . . . . 5 . 32 . . . . . . . . . . . . 15 Explosions 697 | . . 5 . 93 . . . . . . . . . 61 . . . 64 . 77 . 237 160 Melee 3499 | . . . 314 320 222 116 . 54 152 423 26 . . 72 585 148 . 141 . 225 118 83 500 Knockbacks 30 | . . 6 4 2 . . . 3 . . . . . . 2 3 1 1 . . 1 2 5 Impact 15 | . . . 1 . . . . . . . . . . . 2 3 . 1 . . 1 2 5 Kinetic 13 | . . 6 2 2 . . . 3 . . . . . . . . . . . . . . . Secondary 2 | . . . 1 . . . . . . . . . . . . . 1 . . . . . . Self-Inflicted Damage 307 | . 40 30 . 72 . . . 40 27 17 . . . 73 . . . . . . . . 8 Shots 9 | . 1 1 . 2 . . . 2 1 1 . . . 1 . . . . . . . . . Rammed 1 | . . . . . . . . . . . . . . . . . . . . . . . 1 Targets Rammed 1 | . . . . . . . . . . . . . . . . . . . . . . . 1 Kicked . | . . . . . . . . . . . . . . . . . . . . . . . . Crushed . | . . . . . . . . . . . . . . . . . . . . . . . . Highest Temperature 436 | 20 36 6 256 170 . . . 84 393 52 . 46 . 250 6 219 176 60 . 204 136 242 436 Average Temperature 91 | 15 20 4 49 39 . . . 36 151 24 . 23 . 81 4 111 95 27 . 70 71 101 125 Received Heat Transfer 1152 | . . 54 99 255 . . . 12 36 153 46 8 . 8 5 21 30 30 15 7 15 . 358 Effects 2 | . . . . . . . . . 1 . . . . . . . . . . . . . 1 Energy Bleed 1 | . . . . . . . . . . . . . . . . . . . . . . . 1 Matter Decay 1 | . . . . . . . . . 1 . . . . . . . . . . . . . . Siege Activations . | . . . . . . . . . . . . . . . . . . . . . . . . Martial Activations . | . . . . . . . . . . . . . . . . . . . . . . . . Shielding Activations . | . . . . . . . . . . . . . . . . . . . . . . . . Robots Disrupted . | . . . . . . . . . . . . . . . . . . . . . . . . Combat Hostiles . | . . . . . . . . . . . . . . . . . . . . . . . . Robots Corrupted 23 | . . 1 2 . . . . . 1 1 . . . 1 2 3 . 1 . 1 1 2 7 Combat Hostiles 9 | . . 1 1 . . . . . 1 1 . . . . . 2 . . . 1 . 1 1 Parts Fried 46 | . 1 4 7 . . . . . 1 . . . . 1 7 1 . . . . 3 3 18 Impact Corruptions 51 | . . . 10 . . . . . . . . . . . 11 5 . 2 . 2 3 2 16 Robots Melted 1 | . . . . . . . . . . . . . . . . . . . . . . . 1 Combat Hostiles 1 | . . . . . . . . . . . . . . . . . . . . . . . 1 Parts Melted 16 | . . . . 5 . . . . 2 . 7 . . . . . . . . . . . 2 Heat Transferred 3330 | . 50 420 222 1400 . . . . 459 211 37 . . . . . . . . . . 74 457 Parts Sabotaged . | . . . . . . . . . . . . . . . . . . . . . . . . Parts Stolen . | . . . . . . . . . . . . . . . . . . . . . . . . Parts Stripped . | . . . . . . . . . . . . . . . . . . . . . . . . Power Chain Reactions 4 | . 1 1 . . . . . . 1 1 . . . . . . . . . . . . . Alert | -11 -10 -10 -8 -7 -7 -7 -7 -6 -6 -5 -5 -5 -5 -5 -4 -4 -4 -4 -3 -3 -3 -2 -1 ------- Run | Yrd Mat Sub Mat Fac Low Low Zio Pro Fac Fac Ext Cet Arc Hub Fac Upp Upp War Pro Res Tes Res Acc Maximum Alert Level 5 | . . . . 1 . . . . 2 2 1 1 1 3 3 . . . . 4 4 3 5 Low Security (%) 36 | 100 100 . 100 87 . . . . . 48 64 15 14 4 . . . . . 39 . . 15 Level 1 23 | . . . . 12 . . . . 12 30 35 84 85 60 6 . . . . . . 55 8 Level 2 24 | . . . . . . . . . 87 21 . . . 20 60 . . . . 28 32 42 5 Level 3 8 | . . . . . . . . . . . . . . 14 32 . . . . 28 56 1 14 Level 4 2 | . . . . . . . . . . . . . . . . . . . . 2 11 . 14 Level 5 4 | . . . . . . . . . . . . . . . . . . . . . . . 41 High Security . | . . . . . . . . . . . . . . . . . . . . . . . . Max Security . | . . . . . . . . . . . . . . . . . . . . . . . . Peak Influence 2124 | 5 54 . 107 256 . . . . 620 489 314 377 293 809 765 . . . . 1105 1285 719 2124 Initial 719 | . . . . 42 . . . . 620 196 226 140 126 91 318 . . . . 114 596 719 185 Average 424 | . 10 . 35 115 . . . . 483 257 186 262 255 410 619 . . . . 540 883 420 1159 Influence Increases 14662 | 10 79 140 380 826 5 95 . 334 1035 895 522 387 177 909 1009 482 125 1071 281 1249 1263 443 2945 Destroy 0b10 Robot/C 6480 | . 40 100 180 400 . 80 . 220 100 400 240 160 80 120 340 340 60 580 140 540 680 220 1460 Destroy 0b10 Robot/NC 755 | 10 10 . 30 60 5 5 . 5 25 160 35 10 . 55 90 5 . 25 . 60 70 5 90 Destroy Leader 1130 | . 14 10 50 154 . 10 . 30 42 94 24 . . 36 86 20 20 . 20 98 96 40 286 Allied During Kill 3350 | . . . . . . . . 19 2 119 187 170 80 184 233 117 45 466 121 479 249 61 818 Successful Hack 56 | . 11 . . 24 . . . . 12 8 . . . . . . . . . 1 . . . Disable Machine 810 | . . . . 75 . . . . 195 15 . 15 15 255 90 . . . . . 75 . 75 Destroy Structure 986 | . 4 . 30 83 . . . . 29 54 6 32 2 244 140 . . . . 26 78 87 171 Advance Influence 600 | . . . . . . . . . 600 . . . . . . . . . . . . . . Partial Spotted 15 | . . . . 15 . . . . . . . . . . . . . . . . . . . Lose Combat Pursuer 480 | . . 30 90 15 . . . 60 30 45 30 . . 15 30 . . . . 45 15 30 45 Influence Decreases 12542 | 10 79 140 285 811 115 35 60 301 667 833 733 322 231 522 1082 719 393 138 1115 359 1045 1412 1135 Entered New Map 3980 | . . . . 53 41 . 60 . 13 205 237 112 191 172 332 215 65 72 1005 57 465 560 125 Time Decay 6191 | 10 79 123 241 528 74 25 . 201 494 478 446 190 40 120 350 464 318 36 110 302 380 652 530 Search Patrol Dispatched 100 | . . . . . . . . . 100 . . . . . . . . . . . . . . Lost Part 357 | . . 17 . 80 . 10 . 60 60 30 10 . . 10 10 . 10 10 . . . . 50 Lost Ally 1570 | . . . . . . . . 40 . 120 40 20 . 220 240 40 . 20 . . 200 200 430 Purge Threat 344 | . . . 44 150 . . . . . . . . . . 150 . . . . . . . . Squads Dispatched 71 | . 2 . . 9 . . . . 7 7 . . . 1 8 . . . . 7 9 1 20 Investigation 8 | . 1 . . 1 . . . . 1 . . . . 1 . . . . . 3 . 1 . Extermination 16 | . . . . 4 . . . . 3 2 . . . . 2 . . . . . 2 . 3 Reinforcement 27 | . 1 . . 1 . . . . 2 2 . . . . 4 . . . . 3 7 . 7 Assault 8 | . . . . . . . . . 1 . . . . . 1 . . . . . . . 6 Garrison 12 | . . . . 3 . . . . . 3 . . . . 1 . . . . 1 . . 4 Intercept . | . . . . . . . . . . . . . . . . . . . . . . . . Searches Triggered 1 | . . . . . . . . . 1 . . . . . . . . . . . . . . Construction Impeded 3 | . . . . . . . . . . 1 . . . . . . . . . 1 . . 1 Haulers Reinforced 6 | . . . . . . . . . 1 . . . . . . . . . . . 2 . 3 Active Scanning Responses . | . . . . . . . . . . . . . . . . . . . . . . . . Cargo Convoy Interrupts 1 | . . . . 1 . . . . . . . . . . . . . . . . . . . Stealth | -11 -10 -10 -8 -7 -7 -7 -7 -6 -6 -5 -5 -5 -5 -5 -4 -4 -4 -4 -3 -3 -3 -2 -1 --------- Run | Yrd Mat Sub Mat Fac Low Low Zio Pro Fac Fac Ext Cet Arc Hub Fac Upp Upp War Pro Res Tes Res Acc Distress Signals 28 | . . . 2 2 . . . 1 . 3 . 2 . 3 2 . . 1 . 1 3 3 5 Communications Jammed . | . . . . . . . . . . . . . . . . . . . . . . . . Distress Signals . | . . . . . . . . . . . . . . . . . . . . . . . . Times Spotted 463 | . 2 16 16 30 . 5 . 17 11 29 16 12 2 7 24 20 3 55 7 33 25 31 102 Peak Tracking Total 15 | . 2 5 5 4 . 4 . 6 5 5 4 5 1 3 5 7 2 15 4 10 5 7 9 Tactical Retreats 25 | . . 1 4 1 . . . 4 1 3 2 . . 1 2 . . . . 1 1 2 2 Traps | -11 -10 -10 -8 -7 -7 -7 -7 -6 -6 -5 -5 -5 -5 -5 -4 -4 -4 -4 -3 -3 -3 -2 -1 ------- Run | Yrd Mat Sub Mat Fac Low Low Zio Pro Fac Fac Ext Cet Arc Hub Fac Upp Upp War Pro Res Tes Res Acc Traps Triggered 21 | . 1 1 1 2 . . . . 6 . 1 . . 4 1 . . . . . 3 . 1 Indirectly 5 | . . . . . . . . . . . . . . 4 1 . . . . . . . . Trap Hack Attempts . | . . . . . . . . . . . . . . . . . . . . . . . . Triggered . | . . . . . . . . . . . . . . . . . . . . . . . . Disarmed . | . . . . . . . . . . . . . . . . . . . . . . . . Reprogrammed . | . . . . . . . . . . . . . . . . . . . . . . . . Reused . | . . . . . . . . . . . . . . . . . . . . . . . . Traps Extracted . | . . . . . . . . . . . . . . . . . . . . . . . . Installed 12 | . . . . . 8 2 . . . . . . . . . 2 . . . . . . . Triggered . | . . . . . . . . . . . . . . . . . . . . . . . . Machines | -11 -10 -10 -8 -7 -7 -7 -7 -6 -6 -5 -5 -5 -5 -5 -4 -4 -4 -4 -3 -3 -3 -2 -1 ---------- Run | Yrd Mat Sub Mat Fac Low Low Zio Pro Fac Fac Ext Cet Arc Hub Fac Upp Upp War Pro Res Tes Res Acc Machines Disabled 58 | . . 1 . 5 . . . . 13 1 . 1 1 17 6 1 . 1 . . 6 . 5 Max in Single Turn 15 | . . 1 . 4 . . . . 10 1 . 1 . 15 1 1 . 1 . . 1 . 1 Garrison Access 3 | . . . . . . . . . . . . . . . . . . . . . . 3 . Network Hub 1 | . . . . . . . . . . . . . . 1 . . . . . . . . . Energy Cycler 1 | . . . . . . . . . . . . . . . . . . . . . . . 1 Machines Repaired . | . . . . . . . . . . . . . . . . . . . . . . . . Machines Dismantled 1 | . . . . . . . . . . . . . . . . . . 1 . . . . . Machines Sabotaged . | . . . . . . . . . . . . . . . . . . . . . . . . Overloaded Fab Kills . | . . . . . . . . . . . . . . . . . . . . . . . . Hacking | -11 -10 -10 -8 -7 -7 -7 -7 -6 -6 -5 -5 -5 -5 -5 -4 -4 -4 -4 -3 -3 -3 -2 -1 --------- Run | Yrd Mat Sub Mat Fac Low Low Zio Pro Fac Fac Ext Cet Arc Hub Fac Upp Upp War Pro Res Tes Res Acc Machines Accessed 39 | . 3 1 5 15 1 . . . 2 5 . . . . . 1 . 2 . 2 1 1 . Terminals 18 | . 2 . 4 9 1 . . . . 1 . . . . . 1 . . . . . . . Fabricators 4 | . . . . 2 . . . . . 2 . . . . . . . . . . . . . Repair Stations . | . . . . . . . . . . . . . . . . . . . . . . . . Recycling Units 2 | . 1 . 1 . . . . . . . . . . . . . . . . . . . . Scanalyzers 8 | . . . . 2 . . . . 2 1 . . . . . . . . . 2 1 . . Garrison Access 4 | . . . . 2 . . . . . 1 . . . . . . . . . . . 1 . Total Hacks 83 | . 6 1 11 35 1 . . . 3 8 . . . 2 . 4 . 3 . 7 1 1 . Successful 43 | . 5 1 3 13 1 . . . 2 4 . . . . . 4 . 3 . 6 . 1 . Failed 39 | . 1 . 8 21 . . . . 1 4 . . . 2 . . . . . 1 1 . . Catastrophic 9 | . . . 1 5 . . . . . 2 . . . . . . . . . . 1 . . Database Lockouts 1 | . . . . 1 . . . . . . . . . . . . . . . . . . . Manual 14 | . 2 . . 10 . . . . . . . 1 . 1 . . . . . . . . . Terminals 48 | . 5 . 9 24 1 . . . . 3 . . . 2 . 4 . . . . . . . Fabricators 6 | . . . . 3 . . . . . 3 . . . . . . . . . . . . . Repair Stations . | . . . . . . . . . . . . . . . . . . . . . . . . Recycling Units 3 | . 1 . 2 . . . . . . . . . . . . . . . . . . . . Scanalyzers 17 | . . . . 5 . . . . 3 1 . . . . . . . . . 7 1 . . Garrison Access 5 | . . . . 3 . . . . . 1 . . . . . . . . . . . 1 . Terminal Hacks 23 | . 4 1 3 6 1 . . . . 1 . . . . . 4 . 3 . . . . . Record 8 | . . . . 1 1 . . . . . . . . . . 4 . 2 . . . . . Prototype ID Bank 3 | . 2 . . 1 . . . . . . . . . . . . . . . . . . . Open Door 1 | . . . . . . . . . . . . . . . . . . 1 . . . . . Branch Access Points 1 | . . . . 1 . . . . . . . . . . . . . . . . . . . Terminal Index 1 | . 1 . . . . . . . . . . . . . . . . . . . . . . Unreport Threat 2 | . . . 1 1 . . . . . . . . . . . . . . . . . . . Hauler Manifests 1 | . . . . 1 . . . . . . . . . . . . . . . . . . . Registered Components 3 | . . . 1 1 . . . . . 1 . . . . . . . . . . . . . Zone Layout 2 | . 1 . 1 . . . . . . . . . . . . . . . . . . . . Proto ID Catalog 1 | . . 1 . . . . . . . . . . . . . . . . . . . . . Fabricator Hacks 4 | . . . . 2 . . . . . 2 . . . . . . . . . . . . . Network Status 3 | . . . . 2 . . . . . 1 . . . . . . . . . . . . . Build 1 | . . . . . . . . . . 1 . . . . . . . . . . . . . Repair Station Hacks . | . . . . . . . . . . . . . . . . . . . . . . . . Recycling Unit Hacks 1 | . 1 . . . . . . . . . . . . . . . . . . . . . . Retrieve Components 1 | . 1 . . . . . . . . . . . . . . . . . . . . . . Scanalyzer 11 | . . . . 2 . . . . 2 1 . . . . . . . . . 6 . . . Insert Component 2 | . . . . 1 . . . . . . . . . . . . . . . 1 . . . Retrieve Study 9 | . . . . 1 . . . . 2 1 . . . . . . . . . 5 . . . Garrison Access Hacks 1 | . . . . . . . . . . . . . . . . . . . . . . 1 . Seal Access 1 | . . . . . . . . . . . . . . . . . . . . . . 1 . Unauthorized Hacks 3 | . . . . 3 . . . . . . . . . . . . . . . . . . . Terminals 3 | . . . . 3 . . . . . . . . . . . . . . . . . . . Track 1 | . . . . 1 . . . . . . . . . . . . . . . . . . . Botnet 2 | . . . . 2 . . . . . . . . . . . . . . . . . . . Fabricators . | . . . . . . . . . . . . . . . . . . . . . . . . Repair Stations . | . . . . . . . . . . . . . . . . . . . . . . . . Recycling Units . | . . . . . . . . . . . . . . . . . . . . . . . . Scanalyzers . | . . . . . . . . . . . . . . . . . . . . . . . . Garrison Access . | . . . . . . . . . . . . . . . . . . . . . . . . Data Cores Recovered . | . . . . . . . . . . . . . . . . . . . . . . . . Used . | . . . . . . . . . . . . . . . . . . . . . . . . Hacking Detections 25 | . 1 . 4 13 . . . . 1 4 . . . . . 1 . . . . 1 . . Full Trace Events 2 | . . . . 1 . . . . . . . . . 1 . . . . . . . . . Feedback Events 1 | . . . . . . . . . . . . . . 1 . . . . . . . . . Corruption 1 | . . . . . . . . . . . . . . 1 . . . . . . . . . Feedback Blocked . | . . . . . . . . . . . . . . . . . . . . . . . . Robot Schematics Acquired 5 | . . . . . . . 3 . . . . . . . . . . . . . 2 . . Robots Built 2 | . . . . . . . . . . 2 . . . . . . . . . . . . . Authchips . | . . . . . . . . . . . . . . . . . . . . . . . . Time 76 | . . . . . . . . . . 76 . . . . . . . . . . . . . Total Robot Build Rating 10 | . . . . . . . . . . 10 . . . . . . . . . . . . . Part Schematics Acquired 20 | . . . . . . . 15 . . . . . . . . . . . . . 5 . . Parts Built . | . . . . . . . . . . . . . . . . . . . . . . . . Authchips . | . . . . . . . . . . . . . . . . . . . . . . . . Time . | . . . . . . . . . . . . . . . . . . . . . . . . Total Part Build Rating . | . . . . . . . . . . . . . . . . . . . . . . . . Part Studies Acquired 9 | . . . . 1 . . . . 2 1 . . . . . . . . . 5 . . . Parts Repaired . | . . . . . . . . . . . . . . . . . . . . . . . . Time . | . . . . . . . . . . . . . . . . . . . . . . . . Parts Recycled . | . . . . . . . . . . . . . . . . . . . . . . . . Recycled Matter . | . . . . . . . . . . . . . . . . . . . . . . . . Retrieved Matter . | . . . . . . . . . . . . . . . . . . . . . . . . Retrieved Components . | . . . . . . . . . . . . . . . . . . . . . . . . Parts Scanalyzed . | . . . . . . . . . . . . . . . . . . . . . . . . Part Schematics Acquired . | . . . . . . . . . . . . . . . . . . . . . . . . Parts Damaged . | . . . . . . . . . . . . . . . . . . . . . . . . Bothacking | -11 -10 -10 -8 -7 -7 -7 -7 -6 -6 -5 -5 -5 -5 -5 -4 -4 -4 -4 -3 -3 -3 -2 -1 ------------ Run | Yrd Mat Sub Mat Fac Low Low Zio Pro Fac Fac Ext Cet Arc Hub Fac Upp Upp War Pro Res Tes Res Acc Used RIF Installer . | . . . . . . . . . . . . . . . . . . . . . . . . Robots Hacked 1 | . . . . . . . . . . . . . . . . 1 . . . . . . . Non-combat . | . . . . . . . . . . . . . . . . . . . . . . . . Combat 1 | . . . . . . . . . . . . . . . . 1 . . . . . . . Robot Hacks Applied 1 | . . . . . . . . . . . . . . . . 1 . . . . . . . parse_system 1 | . . . . . . . . . . . . . . . . 1 . . . . . . . Relay Couplers Released 6 | . . . . . . . . . . . . . . . . . . . . . . 3 3 Machine Destruction 3 | . . . . . . . . . . . . . . . . . . . . . . 3 . Programmers 3 | . . . . . . . . . . . . . . . . . . . . . . . 3 Fabnet Peak Effective % . | . . . . . . . . . . . . . . . . . . . . . . . . Robots Rewired 12 | . . . . . . . . . . . 7 . . . 1 . . 4 . . . . . Allies Hacked 21 | . . . . . . . . . . 3 2 . . . 1 . . . . . 5 . 10 Hacks Repelled . | . . . . . . . . . . . . . . . . . . . . . . . . Allies | -11 -10 -10 -8 -7 -7 -7 -7 -6 -6 -5 -5 -5 -5 -5 -4 -4 -4 -4 -3 -3 -3 -2 -1 -------- Run | Yrd Mat Sub Mat Fac Low Low Zio Pro Fac Fac Ext Cet Arc Hub Fac Upp Upp War Pro Res Tes Res Acc Total Allies 29 | . . . . . . . 3 . . 2 13 5 . . 1 . . 4 . . . . 1 Largest Group 15 | . . . . . . . 3 3 . 2 11 15 15 14 2 . . 4 4 4 3 . 1 Highest-Rated Group 908 | . . . . . . . 76 76 . 28 453 908 903 744 192 . . 252 252 252 184 . 26 Highest-Rated Ally 159 | . . . . . . . 31 31 . 14 159 159 159 96 96 . . 68 68 68 64 . 26 Total Orders 208 | . . . . . . . . . 5 24 17 1 . 14 4 13 13 10 4 16 12 39 36 STAY 71 | . . . . . . . . . 3 10 3 . . 3 . 7 6 3 2 9 5 8 12 ROAM 1 | . . . . . . . . . . 1 . . . . . . . . . . . . . FOLLOW 79 | . . . . . . . . . 2 11 5 . . 9 1 6 7 7 2 5 4 9 11 AID 1 | . . . . . . . . . . . . . . . . . . . . 1 . . . EXPLORE 23 | . . . . . . . . . . 1 . . . . . . . . . . . 15 7 RETURN 33 | . . . . . . . . . . 1 9 1 . 2 3 . . . . 1 3 7 6 Ally Attacks 1307 | . . . . . . . . 15 7 82 66 37 27 56 69 73 34 104 28 127 129 63 390 Total Damage 49243 | . . . . . . . . 254 360 2609 2668 1149 904 1866 3480 2363 1441 3422 809 4939 6116 2495 14368 Kills 277 | . . . . . . . . 2 1 23 15 10 4 12 23 14 3 20 7 22 44 8 69 Allies Corrupted 26 | . . . . . . . . . . 2 . . . 7 2 . . . . . 4 1 10 Allies Melted 1 | . . . . . . . . . . 1 . . . . . . . . . . . . . Borg Created 74 | . . . . . . . . . 2 6 3 . . 1 16 2 1 . . 1 7 8 27 Largest Collective 5 | . . . . . . . . . 2 3 5 . . 3 4 4 5 . . 5 5 4 5 Intel | -11 -10 -10 -8 -7 -7 -7 -7 -6 -6 -5 -5 -5 -5 -5 -4 -4 -4 -4 -3 -3 -3 -2 -1 ------- Run | Yrd Mat Sub Mat Fac Low Low Zio Pro Fac Fac Ext Cet Arc Hub Fac Upp Upp War Pro Res Tes Res Acc Active Infowar (turns) 22574 | 22 331 2711 947 2125 892 323 1001 484 1128 1216 1053 387 95 216 794 1161 717 1177 336 669 889 2419 1481 Optics 9643 | . . . . . . . . . . . . . . . 794 1161 717 1177 336 669 889 2419 1481 Sensors 3620 | . . . . . . . . . . . . . . . 81 797 430 . 312 668 486 846 . IFF 3233 | . . . . . . . . . 1128 1216 889 . . . . . . . . . . . . Terrain 5363 | . . . . . . . . . . . . . . . . 755 430 . 314 252 488 2093 1031 Structural 496 | . . . . . . . . . . . . . . . . . . . . . . . 496 Seismic 12536 | 22 331 2711 947 2125 892 323 1001 484 . . 820 387 95 216 . . . . . . . 1557 625 Robot Analysis Total . | . . . . . . . . . . . . . . . . . . . . . . . . Derelict Logs Recovered 12 | . . 3 . . 3 . 3 . . . . . . . . 1 2 . . . . . . Drone Launches 45 | . . . . . . . . . . 2 8 1 . 2 3 . . . . 1 3 15 10 Drone Recoveries 41 | . . . . . . . . . . 2 8 1 . 2 3 . . . . 1 3 11 10 Exploration | -11 -10 -10 -8 -7 -7 -7 -7 -6 -6 -5 -5 -5 -5 -5 -4 -4 -4 -4 -3 -3 -3 -2 -1 ------------- Run | Yrd Mat Sub Mat Fac Low Low Zio Pro Fac Fac Ext Cet Arc Hub Fac Upp Upp War Pro Res Tes Res Acc Turns Passed 23472 | 188 331 3084 947 2125 892 323 1002 571 1314 1221 1103 387 95 245 795 1161 717 1177 336 669 889 2419 1481 Spaces Moved 14455 | 79 177 1496 518 1567 469 309 1048 456 804 758 598 199 58 117 432 828 387 776 228 407 479 1593 672 Core 6 | 6 . . . . . . . . . . . . . . . . . . . . . . . Treads 1584 | 73 177 1334 . . . . . . . . . . . . . . . . . . . . . Legs 4427 | . . 162 518 1567 469 309 1048 354 . . . . . . . . . . . . . . . Wheels 8438 | . . . . . . . . 102 804 758 598 199 58 117 432 828 387 776 228 407 479 1593 672 Hover . | . . . . . . . . . . . . . . . . . . . . . . . . Flight . | . . . . . . . . . . . . . . . . . . . . . . . . Fastest Speed 50 | 50 160 120 105 90 90 90 90 90 90 116 120 140 140 140 120 120 117 117 135 115 125 125 130 Average Speed 122 | 151 160 160 115 106 90 90 90 94 124 122 134 141 140 140 121 120 120 117 135 124 125 129 130 Slowest Speed 190 | 160 160 190 120 190 90 90 90 180 155 150 140 175 140 140 135 120 160 135 135 135 125 150 150 Overloaded Moves . | . . . . . . . . . . . . . . . . . . . . . . . . Propulsion Burnouts . | . . . . . . . . . . . . . . . . . . . . . . . . Robots Hopped . | . . . . . . . . . . . . . . . . . . . . . . . . Potential Cave-ins 7 | . . . . . . . . . . . . . . . . . . . . . . 7 . Cave-ins Triggered . | . . . . . . . . . . . . . . . . . . . . . . . . Exploration Rate (%) 50 | 5 32 78 45 50 61 43 86 63 16 16 73 81 84 24 15 86 57 91 56 15 55 63 24 Regions Visited 23 Branch Regions 14 Pre-discovered Areas 6 | . . 2 . . 1 . 3 . . . . . . . . . . . . . . . . Known Exits Taken 9 | . . . 1 1 . . . . 1 1 . . . 1 1 . 1 . . 1 1 . . Unknown Exits Taken 14 | 1 1 1 . . 1 1 1 1 . . 1 1 1 . . 1 . 1 1 . . 1 . Scrap Searched 22 | . . 7 . . 1 . 4 2 . . . . . . . 3 4 . 1 . . . . Spaces Dug 256 | . . 25 24 41 7 16 . 31 13 12 5 . . 4 14 5 . . . 13 15 10 21 Terrain Destroyed 681 | . 3 36 30 93 7 16 . 41 28 20 12 . . 169 15 5 . 93 . 13 35 12 53 Melee 166 | . . 10 22 28 3 2 . 3 13 12 1 . . 4 14 4 . . . 8 13 10 19 Projectile 57 | . . . 8 11 4 1 . 5 1 . 11 . . 1 1 1 . . . 5 2 1 5 AOE 458 | . 3 26 . 54 . 13 . 33 14 8 . . . 164 . . . 93 . . 20 1 29 Terrain Rammed . | . . . . . . . . . . . . . . . . . . . . . . . . Walls Destroyed . | . . . . . . . . . . . . . . . . . . . . . . . . Machines Disabled . | . . . . . . . . . . . . . . . . . . . . . . . . Actions | -11 -10 -10 -8 -7 -7 -7 -7 -6 -6 -5 -5 -5 -5 -5 -4 -4 -4 -4 -3 -3 -3 -2 -1 --------- Run | Yrd Mat Sub Mat Fac Low Low Zio Pro Fac Fac Ext Cet Arc Hub Fac Upp Upp War Pro Res Tes Res Acc Total 19019 | 120 215 2087 776 1859 914 335 1106 542 1059 986 859 301 72 177 608 962 618 1008 255 524 695 1876 1065 Wait 2778 | . 27 464 163 145 414 11 46 42 136 93 127 76 13 35 65 83 202 135 26 59 98 156 162 Move 14431 | 78 176 1495 517 1566 468 308 1047 455 803 757 597 198 57 116 431 827 386 775 227 406 478 1592 671 Hop . | . . . . . . . . . . . . . . . . . . . . . . . . Pick Up 133 | 6 3 8 8 6 1 . 2 . 16 8 3 3 . . 9 6 5 3 . 7 8 15 16 Fast Attach 120 | 7 . 6 7 5 4 . 2 3 22 6 8 6 1 . 1 1 . 10 . 1 11 11 8 Attach 46 | . . 5 3 1 1 . 1 2 4 4 2 . . 1 3 1 3 1 . 1 . 4 9 Detach 40 | . . 4 . . . . 1 . 9 4 5 . . . 1 1 . 4 . . 1 2 8 Swap 330 | . 2 33 3 21 . 2 2 1 10 25 18 8 . 10 24 16 10 10 2 17 29 31 56 Drop 205 | . 2 16 10 21 1 . 4 1 16 12 12 9 1 . 7 7 4 11 . 8 21 27 15 Fire 295 | 29 5 32 23 46 5 2 . 33 9 11 18 1 . 7 4 2 . 15 . 9 7 5 32 Melee 403 | . . 24 42 48 12 10 1 5 31 59 7 . . 7 39 13 7 1 . 15 24 15 43 Ram 1 | . . . . . . . . . . . . . . . . . . . . . . . 1 Kick . | . . . . . . . . . . . . . . . . . . . . . . . . Crush . | . . . . . . . . . . . . . . . . . . . . . . . . Escape Stasis 9 | . . . . . . . . . . . . . . . . . . . . . 9 . . Rewire 100 | . . . . . . . . . . . 58 . . . 5 . . 35 . . . 1 1 Trap 12 | . . . . . 8 2 . . . . . . . . . 2 . . . . . . . Miscellaneous 116 | . . . . . . . . . 3 7 4 . . 1 19 3 1 8 . 1 9 17 43 Route ------- -11/Scrapyard -10/Materials (discovered 2 exits: [*Mat] / *Sub) -10/Subcaves (discovered 2 exits: *Mat x2) -8/Materials -7/Factory (discovered 2 exits: *Low x2) -7/Lower Caves -7/Lower Caves -7/Zion -6/Proximity Caves -6/Factory (discovered 2 exits: *Fac x2) -5/Factory (discovered 2 exits: *Fac / *Ext) -5/Extension (discovered 2 exits: *Fac / *Cet) -5/Cetus (discovered 2 exits: *Fac / [*Arc]) -5/Archives (discovered 2 exits: *Hub x2) -5/Hub_04(d) (discovered 4 exits: *Fac x4) -4/Factory (discovered 3 exits: *Upp x2 / Arm) -4/Upper Caves -4/Upper Caves (discovered 2 exits: *Res / *War) -4/Warlord -3/Proximity Caves -3/Research (discovered 5 exits: Res x3 / *Tes x2) -3/Testing -2/Research (discovered 3 exits: [*Acc x3]) -1/Access To Epsilon Eridani History --------- Turn | Location | Event 35 | -11/Scrapyard | Discovered new exit (range 15) 189 | -11/Scrapyard | Entered Materials 291 | -10/Materials | Discovered new exit (range 15) 311 | -10/Materials | Build established: Mutant 517 | -10/Materials | Discovered new exit (range 4) 520 | -10/Materials | Entered Subcaves 521 | -10/Subcaves | Approached by a straggling Scientist 676 | -10/Subcaves | Shifting Twisted Machinery released Battle Cannon 679 | -10/Subcaves | Shifting Twisted Machinery released Mak. Hammer 685 | -10/Subcaves | Discovered new exit (range 5) 1025 | -10/Subcaves | Learned 2 Materials zone layouts 1717 | -10/Subcaves | Learned location of Zion (-7) 1717 | -10/Subcaves | Met a Zionite searching for "candidates" 1733 | -10/Subcaves | Learned Materials stockpile data 2339 | -10/Subcaves | A swath of the cavern ceiling suddenly collapsed 2802 | -10/Subcaves | Visited 4L-MR0's lab 2896 | -10/Subcaves | Learned location of Storage (-9) 3017 | -10/Subcaves | Lost 3 parts (1p1n1u) 3436 | -10/Subcaves | Discovered new exit (range 13) 3517 | -10/Subcaves | Found Prototype Special Melee Weapon 3533 | -10/Subcaves | Found Arachnoskeleton 3604 | -10/Subcaves | Entered Materials 3604 | -8/Materials | Evolved 4 slots: Propulsion x1, Utility x1, Weapon x2 3605 | -8/Materials | Identified exit to Factory 3705 | -8/Materials | Attached Arachnoskeleton, gained temporary slots: Propulsion x3 4296 | -8/Materials | Build established: Gunner 4551 | -8/Materials | Entered Factory 4551 | -7/Factory | Evolved 2 slots: Power x1, Utility x1 5279 | -7/Factory | Cargo convoy interrupted 5909 | -7/Factory | Build established: Tank 6148 | -7/Factory | Identified exit to Lower Caves 6366 | -7/Factory | Central database locked down 6676 | -7/Factory | Entered Lower Caves 6703 | -7/Lower Caves | Lost 3 parts (2p1u) 7184 | -7/Lower Caves | Build established: Gunner 7284 | -7/Lower Caves | Learned location of Extension (-5) 7307 | -7/Lower Caves | Learned location of 1 exit from Factory 7308 | -7/Lower Caves | Learned Factory terminal intel 7523 | -7/Lower Caves | Build established: Scavenger-Gunner 7557 | -7/Lower Caves | Discovered new exit (range 7) 7568 | -7/Lower Caves | Entered another Lower Caves area 7880 | -7/Lower Caves | Discovered new exit (range 6) 7891 | -7/Lower Caves | Entered Zion 7956 | -7/Zion | Discovered new exit (range 15) 8072 | -7/Zion | Learned 4 Factory zone layouts 8202 | -7/Zion | Gained Derelict followers 8221 | -7/Zion | Learned Factory terminal intel 8244 | -7/Zion | Found CR-A16's Pointy Stick 8280 | -7/Zion | Learned Factory emergency access door positions 8398 | -7/Zion | Build established: Tank 8466 | -7/Zion | Met Imprinter 8748 | -7/Zion | Given the Hacking Drone Bay 8750 | -7/Zion | Found Prototype Device 8751 | -7/Zion | Identified Hacking Drone Bay 8893 | -7/Zion | Entered Proximity Caves 8893 | -6/Proximity Caves | Accompanied by 3 allies 8977 | -6/Proximity Caves | Spotter reported a threat 8984 | -6/Proximity Caves | Spotter reported a threat 9037 | -6/Proximity Caves | Spotter reported a threat 9038 | -6/Proximity Caves | Spotted B-75 Beast 9090 | -6/Proximity Caves | Lost 3 allies 9173 | -6/Proximity Caves | Spotter reported a threat 9368 | -6/Proximity Caves | Lost 3 parts (1p1n1u) 9453 | -6/Proximity Caves | Discovered new exit (range 15) 9464 | -6/Proximity Caves | Entered Factory 9464 | -6/Factory | Evolved 2 slots: Weapon x2 9465 | -6/Factory | Identified exit to Factory 9468 | -6/Factory | Loaded intel: 26 terminal locations 9814 | -6/Factory | Search patrols dispatched 10164 | -6/Factory | First assault squad dispatched 10168 | -6/Factory | Build established: Executioner 10389 | -6/Factory | Identified 1B-0RG's Assimilator 10535 | -6/Factory | Assimilating Shepherd 5a into Collective. 10573 | -6/Factory | Discovered exit to Factory (range 10) 10692 | -6/Factory | Build established: Mutant 10773 | -6/Factory | Assimilating Gladiator 5a into Collective. 10778 | -6/Factory | Entered another Factory area 10778 | -5/Factory | Accompanied by 1 ally 10778 | -5/Factory | Evolved 2 slots: Propulsion x1, Utility x1 10779 | -5/Factory | Identified exit to Extension 10780 | -5/Factory | Loaded intel: 28 terminal locations 10791 | -5/Factory | Assimilating Machinist 6a into Collective. 10870 | -5/Factory | Discovered new exit (range 13) 11112 | -5/Factory | Assimilating Soldier 6a into Collective. 11118 | -5/Factory | Assimilating Soldier 6b into Collective. 11265 | -5/Factory | Fabricated E-15 Imp? 11379 | -5/Factory | Garrison activated, responded to threat 11384 | -5/Factory | Assimilating Sentinel 6a into Collective. 11897 | -5/Factory | Assimilating Sage 6a into Collective. 11954 | -5/Factory | Assimilating Engineer 6a into Collective. 11999 | -5/Factory | Entered Extension 11999 | -5/Extension | Accompanied by 3 allies 12026 | -5/Extension | Assimilating Sage 6b into Collective. 12053 | -5/Extension | Assimilating Soldier 6c into Collective. 12105 | -5/Extension | Rescued a captive Derelict 12172 | -5/Extension | Found Imp. Powered Armor 12193 | -5/Extension | Build established: Scavenger-Mutant 12262 | -5/Extension | Rescued a captive Derelict 12502 | -5/Extension | Build established: Mutant 12514 | -5/Extension | Rescued A7 12537 | -5/Extension | Spotted B-75 Beast 12564 | -5/Extension | Allies destroyed B-75 Beast 12568 | -5/Extension | Spotted B-75 Beast 12578 | -5/Extension | Allies destroyed B-75 Beast 12705 | -5/Extension | Assimilating Sentinel 6b into Collective. 12829 | -5/Extension | Rescued a captive Derelict 12878 | -5/Extension | Rescued a captive Derelict 12884 | -5/Extension | Rescued a captive Derelict 12953 | -5/Extension | Rescued a captive Derelict 13024 | -5/Extension | Discovered new exit (range 10) 13025 | -5/Extension | Discovered new exit (range 6) 13102 | -5/Extension | Entered Cetus 13102 | -5/Cetus | Accompanied by 16 allies (A7) 13107 | -5/Cetus | Acquired a Cetus Manufacturing Module code from A7 13110 | -5/Cetus | Build established: Commander-Mutant 13119 | -5/Cetus | Spotted Cetus Guard 13119 | -5/Cetus | Spotted Cetus Guard 13123 | -5/Cetus | Allies destroyed Cetus Guard 13123 | -5/Cetus | Spotted Cetus Guard 13123 | -5/Cetus | Spotted Cetus Guard 13125 | -5/Cetus | Allies destroyed Cetus Guard 13139 | -5/Cetus | Allies destroyed Cetus Guard 13142 | -5/Cetus | Allies destroyed Cetus Guard 13231 | -5/Cetus | Started Cetus Manufacturing Module 13256 | -5/Cetus | Manufactured an Enhanced Grunt 13263 | -5/Cetus | Escorted A7 to Cetus Mainframe 13281 | -5/Cetus | Manufactured an Enhanced Grunt 13289 | -5/Cetus | Discovered new exit (range 15) 13306 | -5/Cetus | Manufactured an Enhanced Grunt 13331 | -5/Cetus | Manufactured an Enhanced Grunt 13350 | -5/Cetus | Spotted Cetus Guard 13351 | -5/Cetus | Spotted Cetus Guard 13356 | -5/Cetus | Manufactured an Enhanced Grunt 13359 | -5/Cetus | Allies destroyed Cetus Guard 13361 | -5/Cetus | Allies destroyed Cetus Guard 13362 | -5/Cetus | Spotted Cetus Guard 13362 | -5/Cetus | Allies destroyed Cetus Guard 13373 | -5/Cetus | Discovered new exit (range 16) 13380 | -5/Cetus | Met Revision 17 13489 | -5/Cetus | Entered Archives 13489 | -5/Archives | Accompanied by 20 allies (A7) 13494 | -5/Archives | Received a hacking code to weaken MAIN.C 13503 | -5/Archives | Discovered new exit (range 23) 13537 | -5/Archives | Discovered new exit (range 18) 13584 | -5/Archives | Entered Hub_04(d) 13584 | -5/Hub_04(d) | Accompanied by 19 allies 13694 | -5/Hub_04(d) | Identified exit to Factory 13744 | -5/Hub_04(d) | Network Hub disabled 13760 | -5/Hub_04(d) | Spotted Lightning 13770 | -5/Hub_04(d) | Spotted Lightning 13787 | -5/Hub_04(d) | Spotted Lightning 13789 | -5/Hub_04(d) | Spotted Lightning 13792 | -5/Hub_04(d) | Spotted Lightning 13794 | -5/Hub_04(d) | Spotted Lightning 13805 | -5/Hub_04(d) | Assimilating Sentinel 6c into Collective. 13829 | -5/Hub_04(d) | Entered Factory 13829 | -4/Factory | Accompanied by 5 allies 13829 | -4/Factory | Evolved 2 slots: Propulsion x1, Utility x1 13832 | -4/Factory | Lost 3 allies 13844 | -4/Factory | Assimilating Enhanced Grunt into Collective. 14029 | -4/Factory | Assimilating Enhanced Grunt into Collective. 14036 | -4/Factory | Build established: Scavenger-Mutant 14079 | -4/Factory | First assault squad dispatched 14137 | -4/Factory | Lost 5 allies 14176 | -4/Factory | Assimilating Engineer 7a into Collective. 14179 | -4/Factory | Assimilating Engineer 7b into Collective. 14215 | -4/Factory | Assimilating Serf 7a into Collective. 14321 | -4/Factory | Assimilating Processor 7a into Collective. 14325 | -4/Factory | Assimilating Processor 7b into Collective. 14364 | -4/Factory | Assimilating Assassin 7a into Collective. 14369 | -4/Factory | Assimilating Assassin 7b into Collective. 14405 | -4/Factory | Assimilating Veteran 7b into Collective. 14462 | -4/Factory | Identified exit to Upper Caves 14462 | -4/Factory | Identified exit to Armory 14501 | -4/Factory | Assimilating Eye 7a into Collective. 14520 | -4/Factory | Assimilating Enforcer 7a into Collective. 14530 | -4/Factory | Assimilating Swordsman 7a into Collective. 14534 | -4/Factory | Assimilating Sage 7a into Collective. 14543 | -4/Factory | Assimilating Veteran 7c into Collective. 14555 | -4/Factory | Lost 3 allies 14565 | -4/Factory | Assimilating Sage 7b into Collective. 14578 | -4/Factory | Garrison activated, responded to threat 14624 | -4/Factory | Entered Upper Caves 14624 | -4/Upper Caves | Accompanied by 4 allies 14626 | -4/Upper Caves | Attracted the attention of an 0b10 checkpoint 14953 | -4/Upper Caves | Build established: Scavenger-Assassin 14984 | -4/Upper Caves | Assimilating Assassin 7c into Collective. 15128 | -4/Upper Caves | Spotted B-86 Titan 15148 | -4/Upper Caves | Allies destroyed B-86 Titan 15363 | -4/Upper Caves | Encountered a Warlord checkpoint 15389 | -4/Upper Caves | Learned location of 1 exit from Research 15443 | -4/Upper Caves | Discovered new exit (range 17) 15585 | -4/Upper Caves | Attracted the attention of an 0b10 base 15603 | -4/Upper Caves | Assimilating Veteran 7d into Collective. 15681 | -4/Upper Caves | Learned location of 2 exits from Upper Caves 15681 | -4/Upper Caves | Learned Extension trap positions 15681 | -4/Upper Caves | Learned Research terminal intel 15785 | -4/Upper Caves | Entered another Upper Caves area 15785 | -4/Upper Caves | Accompanied by 4 allies 15785 | -4/Upper Caves | Discovered new exit (range 23) 15786 | -4/Upper Caves | Encountered a Warlord checkpoint 15786 | -4/Upper Caves | Identified exit to Warlord 15801 | -4/Upper Caves | Learned Research stockpile data 15873 | -4/Upper Caves | Build established: Scavenger-Mutant 16079 | -4/Upper Caves | Assimilating Assassin 7d into Collective. 16132 | -4/Upper Caves | Learned Research interactive machine intel 16391 | -4/Upper Caves | Spotted B-86 Titan 16415 | -4/Upper Caves | Allies destroyed B-86 Titan 16502 | -4/Upper Caves | Entered Warlord 16502 | -4/Warlord | Accompanied by 5 allies 16535 | -4/Warlord | Discovered new exit (range 13) 16570 | -4/Warlord | System corruption cleaned by Quarantine Array 17043 | -4/Warlord | Met Warlord 17068 | -4/Warlord | Warlord's base attacked by MAIN.C 17142 | -4/Warlord | Found Prototype Energy Gun 17265 | -4/Warlord | Found Prototype Reactor 17265 | -4/Warlord | Identified Vortex Chain Reactor 17285 | -4/Warlord | Found Prototype Processor 17285 | -4/Warlord | Identified Exp. Core Analyzer 17296 | -4/Warlord | Found Prototype Device 17296 | -4/Warlord | Identified Exp. Phase Shifter 17418 | -4/Warlord | Warlord forces counterattacked 17499 | -4/Warlord | Lost 3 allies 17505 | -4/Warlord | Spotted Striker 17506 | -4/Warlord | Spotted B-90 Cyclops 17537 | -4/Warlord | Spotted B-86 Titan 17557 | -4/Warlord | Allies destroyed B-86 Titan 17570 | -4/Warlord | Lost 13 allies 17573 | -4/Warlord | Spotted Striker 17599 | -4/Warlord | Spotted Striker 17610 | -4/Warlord | Allies destroyed Striker 17625 | -4/Warlord | Spotted Executioner 17636 | -4/Warlord | Lost 8 allies 17637 | -4/Warlord | Allies destroyed Executioner 17646 | -4/Warlord | Destroyed 9 combat bots 17679 | -4/Warlord | Entered Proximity Caves 17679 | -3/Proximity Caves | Accompanied by 8 allies 17984 | -3/Proximity Caves | Discovered new exit (range 14) 18009 | -3/Proximity Caves | Build established: Scavenger-Assassin 18015 | -3/Proximity Caves | Entered Research 18015 | -3/Research | Accompanied by 8 allies 18015 | -3/Research | Evolved 2 slots: Power x1, Propulsion x1 18016 | -3/Research | Identified exit to Research 18018 | -3/Research | Loaded intel: 46 interactive machine locations 18019 | -3/Research | Loaded intel: 23 terminal locations 18134 | -3/Research | Garrison activated, responded to threat 18184 | -3/Research | Identified exit to Testing 18215 | -3/Research | Revision forces began assault on 0b10 18260 | -3/Research | Assimilating Beamer 7a into Collective. 18303 | -3/Research | Destroyed 8 combat bots 18308 | -3/Research | Met up with Revision 17++ 18596 | -3/Research | Build established: Scavenger-Mutant 18684 | -3/Research | Entered Testing 18684 | -3/Testing | Accompanied by 8 allies 18684 | -3/Testing | Identified Vortex Rifle 18734 | -3/Testing | Found Prototype Protection 18734 | -3/Testing | Identified Centrium Heavy Armor Plating 18817 | -3/Testing | Found Prototype Energy Gun 18817 | -3/Testing | Identified Hyp. EM Gauss Rifle 18947 | -3/Testing | Assimilating Master 8a into Collective. 18956 | -3/Testing | Scanned by Researcher 18979 | -3/Testing | Lost 3 allies 19039 | -3/Testing | Spotted PP-OX43M7RNA4 19046 | -3/Testing | Allies destroyed PP-OX43M7RNA4 19129 | -3/Testing | Assimilating Archangel 7b into Collective. 19271 | -3/Testing | Assimilating Master 8b into Collective. 19297 | -3/Testing | Assimilating Engineer 8a into Collective. 19344 | -3/Testing | Found Prototype Launcher 19344 | -3/Testing | Identified Z-bomb Delivery System 19369 | -3/Testing | Assimilating Master 8c into Collective. 19441 | -3/Testing | Discovered exit to Research (range 20) 19442 | -3/Testing | Assimilating Assassin 8a into Collective. 19538 | -3/Testing | Assimilating Veteran 8a into Collective. 19573 | -3/Testing | Entered Research 19573 | -2/Research | Accompanied by 3 allies 19573 | -2/Research | Warlord forces began assault on 0b10 19573 | -2/Research | Evolved 2 slots: Utility x2 19606 | -2/Research | Assimilating Administrator 9a into Collective. 19640 | -2/Research | Discovered new exit (range 18) 19683 | -2/Research | Research machine network offline 19741 | -2/Research | Found Centrium Heavy Armor Plating 19744 | -2/Research | Found Centrium Heavy Armor Plating 19745 | -2/Research | Discovered new exit (range 88) 19749 | -2/Research | Found Centrium Heavy Armor Plating 19764 | -2/Research | Met up with Warlord 19974 | -2/Research | Spotted Striker 19976 | -2/Research | Spotted Striker 19998 | -2/Research | Allies destroyed Striker 20010 | -2/Research | Assimilating Plague 9a into Collective. 20038 | -2/Research | Assimilating Electro 9a into Collective. 20047 | -2/Research | Lost 5 allies 20065 | -2/Research | Assimilating Rainmaker 9a into Collective. 20141 | -2/Research | Spotted Striker 20144 | -2/Research | Spotted Striker 20156 | -2/Research | Allies destroyed Striker 20192 | -2/Research | Borebot progress halted 20252 | -2/Research | Borebot progress halted 20372 | -2/Research | Spotted Executioner 20397 | -2/Research | Destroyed Executioner 20410 | -2/Research | Build established: Assassin 20717 | -2/Research | Build established: Mutant 20736 | -2/Research | Warlord invited to help at Command 20736 | -2/Research | Given Cave Seal Controls access code 20997 | -2/Research | Assimilating Warden 9a into Collective. 21355 | -2/Research | Discovered new exit (range 14) 21476 | -2/Research | Assimilating Master 9a into Collective. 21530 | -2/Research | Spotted Striker 21534 | -2/Research | Allies destroyed Striker 21765 | -2/Research | Assimilating Plague 9b into Collective. 21793 | -2/Research | Lost 3 allies 21801 | -2/Research | Spotted Striker 21831 | -2/Research | Allies destroyed Striker 21888 | -2/Research | Assimilating Enforcer 9a into Collective. 21992 | -2/Research | Entered Access 21992 | -1/Access | Accompanied by 3 allies 21992 | -1/Access | Evolved 2 slots: Utility x2 22049 | -1/Access | Assimilating Warden 10a into Collective. 22076 | -1/Access | Garrison activated, responded to threat 22113 | -1/Access | Assimilating Enforcer 10a into Collective. 22130 | -1/Access | Assimilating Champion 10a into Collective. 22139 | -1/Access | Assimilating Enforcer 10b into Collective. 22197 | -1/Access | Garrison activated, responded to threat 22271 | -1/Access | Assimilating Terminator 10a into Collective. 22300 | -1/Access | Energy Cycler disabled 22454 | -1/Access | Assimilating Warden 10b into Collective. 22468 | -1/Access | Assimilating Terminator 10b into Collective. 22480 | -1/Access | Lost 3 allies 22492 | -1/Access | First assault squad dispatched 22612 | -1/Access | Assimilating Master 10a into Collective. 22655 | -1/Access | Assimilating Terminator 10c into Collective. 22668 | -1/Access | Assimilating Master 10b into Collective. 22705 | -1/Access | Assimilating Master 10c into Collective. 22772 | -1/Access | Assimilating Terminator 10d into Collective. 22875 | -1/Access | Assimilating Electro 10a into Collective. 22905 | -1/Access | Assimilating Annihilator 10a into Collective. 23078 | -1/Access | Assimilating Engineer 10a into Collective. 23087 | -1/Access | Assimilating Engineer 10b into Collective. 23101 | -1/Access | Discovered new exit (range 19) 23125 | -1/Access | Assimilating Master 10d into Collective. 23143 | -1/Access | Lost 3 allies 23146 | -1/Access | Assimilating Master 10e into Collective. 23158 | -1/Access | Assimilating Master 10f into Collective. 23179 | -1/Access | Assimilating Master 10g into Collective. 23188 | -1/Access | Assimilating Master 10h into Collective. 23196 | -1/Access | Assimilating Champion 10b into Collective. 23205 | -1/Access | Assimilating Enforcer 10c into Collective. 23217 | -1/Access | Lost 3 allies 23257 | -1/Access | Spotted B-99 Colossus 23260 | -1/Access | Spotted B-99 Colossus 23271 | -1/Access | Revealed the true nature of CR-A16's Pointy Stick 23274 | -1/Access | Destroyed B-99 Colossus 23282 | -1/Access | Destroyed B-99 Colossus 23286 | -1/Access | Found Hvy. Reflective Plating 23318 | -1/Access | Assimilating Champion 10c into Collective. 23332 | -1/Access | Assimilating Champion 10d into Collective. 23337 | -1/Access | Destroyed 9 combat bots 23337 | -1/Access | Assimilating Champion 10e into Collective. 23343 | -1/Access | System corruption reached 10% 23344 | -1/Access | Assimilating Enforcer 10d into Collective. 23350 | -1/Access | Found Prototype Ballistic Gun 23350 | -1/Access | Identified Multirail 23359 | -1/Access | Lost 5 allies 23384 | -1/Access | Found Multirail 23473 | *** | Escaped! Last Messages --------------- 23437_ R-10 Processor destroyed. 23440_ Acquired 69 matter. 23440_ Acquired 83 matter. 23440_ Acquired 128 matter. 23453_ 8AI:HXL=K7DDMN SJ09NVMJX0MNGZWAL 23456_ Sneak attack on R-10 Processor. 23456_ Destroyed Unknown Device. 23456_ Destroyed Com. Wheel. 23456_ R-10 Processor system corrupted by crushing effect. 23456_ R-10 Processor knocked back. 23457_ R-10 Processor system terminally corrupted. 23457_ Field Recycling Unit fried. 23457_ Com. Wheel fried. 23457_ Imp. Ion Engine fried. 23460_ Acquired 111 matter. 23471_ System corrupted: Energy discharge (-207). [Achievement: On My Own Terms] Map ----- +----------------------------------------------------+ | ?????????????????????????????????????# ^ [% | | ?????????????????????????????????????# ! | | ??????????????????????????????????? ^^ | | ????????????????????????????????????## | | ?????????????????????????????????????# ^ | | ?????????????????????????????????????# | | ?????????????????????????????????????# ^ | | ?????????????????????????????????????############# | | ?????????????????????????????????????????????????? | | ?????????????????????????????????????????????????? | | ????????????????????????????????#????????????????? | | ?????????????????????????????????#???????????????? | | ?????????????????????????????????????????????????? | | ??????????????????????????????????????????????? ?? | | ??????????????????????????????????????????????? ? | | ??????????????????????????????????????????????? ? | | ????????????????????????????????????????????#?? "? | | ??????????????????????????????#???#????????????""? | | ????????????????????????????????????????###???# "? | | ????????????????????????#######??#########????# " | | ????????????????????????? ""?" ###### | | ??????????????????????????? "?"" ## # | | ???????????????????????"""""" ""?" ######### | | ????????????????? ?????" b " """ ! ! | | ???????????????????????" "" b ! =!= | | ???????????????????????" @"g" """" ! = | | ???????????????????? ??" " "??" ! " | | ????????????????????? """""" "??" ] ### #### | | ????????????????? ?????????? "?"" ###% ## | | ?????????????????? ??????? ? "?"" ###! ## ? | | ??????????????????????#????#####?###########!%##?? | | ??????????????????##?#????########## ####### ##?? | | ????????????????????#?????##########"####### ##?? | | ?????????????????????????? # #### ## ? | | ????????????????????? ??? # #### ##? | | ????????????????????? ??? # [ = ####!!##?? | | ???????????????????? ? ? # = ####! ## ? | | ?????????????????? ? ???? # * ####[!##?# | | ???????????????? #"#+#############=!##?? | | ????????????????########+### !![[[ [ ##?# | | ????????????? = *=|=! ##?# | | ????????????? ![ |=|=! ##?? | | ???????????????### % = ###/############?? | | ???????????????### "" * # #####?? | | ???????????????? #""" # #####?? | | ?????????????????#"T [[[ # " !##????? | | ?????????????????#""" [[[ #""" ##????? | | ?????????????????# "" [[ # """ ##????# | | ?????????????????# # " = ##?#??? | | ?????????????????# # ####### | +----------------------------------------------------+ Best States ------------- Heat Dissipation 114 Energy Generation 79 Energy Capacity 950 Matter Stores 500 Matter Capacity 600 Sight Range 22 Robot Scan Range 18 Terrain Scan Range 20 Terrain Scan Density 10 Power Amplification 20 Armor Coverage 2400 Resistance: TH 25 Point Defense Rating 240 Melee Speed Boost 20 Phase Shifting 20 Evasion (%) 60 Melee Accuracy 6 Recoil Reduction 2 Offensive Hacking 14 Defensive Hacking 10 Item Schematics ----------------- Imp. KE Penetrator | -7/Zion | Archive Gatling Laser | -7/Zion | Archive Thermic Laser | -7/Zion | Archive Med. Treads | -7/Zion | Archive Matter Compressor | -7/Zion | Archive Great Axe | -7/Zion | Archive Powered Hammer | -7/Zion | Archive Flexi-carbon Leg | -7/Zion | Archive Lrn. Tractor Beam | -7/Zion | Archive Adv. Drone Bay | -7/Zion | Archive EM Disruption Field | -7/Zion | Archive Imp. Actuator Array | -7/Zion | Archive Adv. Heat Sink | -7/Zion | Archive Dynamic Insulation System | -7/Zion | Archive Arm. Leg | -7/Zion | Archive Exp. Weapon Shielding | -3/Testing | Archive Cld. Antigrav System | -3/Testing | Archive Neutron Missile Launcher | -3/Testing | Archive Hvy. Neutron Cannon | -3/Testing | Archive Enh. Force Rifle | -3/Testing | Archive Robot Schematics ------------------ R-06 Scavenger | -7/Zion | Archive W-25 Informer | -7/Zion | Archive H-55 Commando | -7/Zion | Archive A-15 Conveyor | -3/Testing | Archive C-55 Analyst | -3/Testing | Archive Fabricated ------------ E-15 Imp | x2 | -5/Factory | Preloaded Repaired ---------- Nothing Studied --------- Com. Wheel | -7/Factory | Hacked Adv. Assault Cannon | -6/Factory | Hacked Arm. Wheel | -6/Factory | Hacked Angular Momentum Engine | -5/Factory | Hacked Wheel | -3/Research | Hacked Antimatter Reactor | -3/Research | Hacked Lrn. Missile Launcher | -3/Research | Hacked Myomer Leg | -3/Research | Hacked Imp. Plasma Cutter | -3/Research | Hacked Alien Tech Used ----------------- None Achievements -------------- All Kinds Of Bad News Analysis Probe Be The Sidekick Botjacking Hammer Time Into The Breach King Drone On My Own Terms Plot Armor Sprinter Tailor-made The Robot, The Myth, The Legend Welcome To The Revolution Challenges ------------ None Game ------ Seed BoreIntegratedHumpback Manual? 0 Play Time 11:00:38 Cumulative 660.5 hours Start 2026.02.17 @ 12:43:22 End 2026.03.17 @ 12:22:05 Sessions 15 Manual Loads 0 Difficulty Rogue Special Mode None Game No. 175 Rogue 175 Adventurer 0 Explorer 0 Win Type 0 Total 48 Types 33/0/6/3/1/1/1/2/0/1 Lore% 50 Gallery% 72 Achievement% 57 Wizard Run 0 Options --------- Layout 2 ASCII 0 Keyboard 0 Movement Numpad Keybinds 0 Fullscreen 2 Font 24/Smallcaps Map View 50x44 Zoom Use 0% Tactical HUD 1 Map Filters NONE Filters NONE Steam 1 RUN: 3c10a012-27b6-48dd-a7f7-9361294ac559